[Event "Allsvenskan 24-25"]
[Site "Linköping, Sweden"]
[Date "????.??.??"]
[Round "10.9"]
[White "Andersson, Lars"]
[Black "Davidsson, Asker"]
[Result "1-0"]
[TimeControl "90 min/40 moves + 30 min + 30 sec from move 1"]
[WhiteElo "2006"]
[BlackElo "1823"]

1. d4 {[%clk 01:30:57]} {[%emt 24:09:03]} d5 {[%clk 01:30:53]} 2. Bf4 {[%clk
01:31:21]} Nf6 {[%clk 01:29:27]} 3. e3 {[%clk 01:31:41]} c5 {[%clk 01:27:47]} 4.
c3 {[%clk 01:31:59]} Bf5 {[%clk 01:22:02]} 5. Nf3 {[%clk 01:26:00]} cxd4 {[%clk
01:18:42]} 6. exd4 {[%clk 01:25:42]} Nc6 {[%clk 01:16:51]} 7. Nbd2 {[%clk
01:21:15]} e6 {[%clk 01:14:17]} 8. Qb3 {[%clk 01:19:08]} {[%emt 00:00:44]} Qb6
{[%clk 01:07:01]} {[%emt 00:07:46]} 9. Qxb6 {[%clk 01:14:11]} {[%emt 00:05:28]}
axb6 {[%emt 00:06:56]} 10. Nh4 {[%clk 01:07:47]} Bc2 {[%clk 01:04:06]} {[%emt
00:03:53]} 11. Rc1 {[%clk 01:05:56]} {[%emt 00:02:22]} Bg6 {[%clk 01:04:29]}
{[%emt 00:00:07]} 12. Nxg6 {[%clk 01:05:45]} {[%emt 00:00:41]} hxg6 {[%clk
01:04:56]} {[%emt 00:00:02]} 13. a3 {[%clk 01:05:56]} {[%emt 00:00:19]} Be7
{[%clk 01:00:11]} {[%emt 00:05:14]} 14. Bb5 {[%clk 00:52:34]} {[%emt 00:13:53]}
Ra5 {[%clk 00:48:40]} {[%emt 00:12:01]} 15. Be2 {[%clk 00:42:27]} {[%emt
00:10:37]} O-O {[%clk 00:48:08]} {[%emt 00:01:02]} 16. g4 {[%clk 00:36:52]}
{[%emt 00:06:05]} Rc8 {[%clk 00:46:04]} {[%emt 00:02:34]} 17. O-O {[%clk
00:31:01]} {[%emt 00:06:20]} Kf8 {[%clk 00:40:28]} {[%emt 00:06:06]} 18. Bg3
{[%clk 00:29:13]} {[%emt 00:02:18]} Kg8 {[%clk 00:33:37]} {[%emt 00:07:21]} 19.
Rce1 {[%clk 00:22:52]} {[%emt 00:06:50]} g5 {[%clk 00:23:02]} {[%emt 00:11:05]}
20. Rc1 {[%clk 00:12:44]} {[%emt 00:10:39]} Ra4 {[%clk 00:21:42]} {[%emt
00:01:50]} 21. h3 {[%clk 00:11:18]} {[%emt 00:01:56]} Ra5 {[%clk 00:21:01]}
{[%emt 00:01:11]} 22. Bd3 {[%clk 00:11:21]} {[%emt 00:00:27]} g6 {[%clk
00:19:10]} {[%emt 00:02:21]} 23. Kg2 {[%clk 00:09:34]} {[%emt 00:02:17]} Kg7
{[%clk 00:19:10]} {[%emt 00:00:30]} 24. f4 {[%clk 00:09:49]} {[%emt 00:00:14]}
gxf4 {[%clk 00:18:38]} {[%emt 00:01:02]} 25. Bxf4 {[%clk 00:10:07]} {[%emt
00:00:12]} Ra4 {[%clk 00:17:21]} {[%emt 00:01:47]} 26. Bb5 {[%clk 00:05:17]}
{[%emt 00:05:20]} Ra5 {[%clk 00:17:02]} {[%emt 00:00:50]} 27. Bxc6 {[%clk
00:05:30]} {[%emt 00:00:17]} bxc6 {[%clk 00:16:48]} {[%emt 00:00:44]} 28. Be5
{[%clk 00:05:58]} {[%emt 00:00:02]} g5 {[%clk 00:15:51]} {[%emt 00:01:27]} 29.
h4 {[%clk 00:06:16]} {[%emt 00:00:11]} Kg6 {[%clk 00:14:04]} {[%emt 00:02:16]}
30. h5+ {[%clk 00:06:31]} {[%emt 00:00:17]} Kg7 {[%clk 00:13:29]} {[%emt
00:01:04]} 31. Rf2 {[%clk 00:06:34]} {[%emt 00:00:26]} Rh8 {[%clk 00:11:35]}
{[%emt 00:02:25]} 32. Rcf1 {[%clk 00:04:06]} {[%emt 00:02:58]} Rh6 {[%clk
00:12:03]} {[%emt 00:00:02]} 33. Nf3 {[%clk 00:03:33]} {[%emt 00:01:03]} Kf8
{[%clk 00:10:29]} {[%emt 00:02:05]} 34. Nh2 {[%clk 00:03:20]} {[%emt 00:00:43]}
Kg7 {[%clk 00:09:03]} {[%emt 00:01:56]} 35. Kh3 {[%clk 00:03:03]} {[%emt
00:00:44]} c5 {[%clk 00:08:25]} {[%emt 00:01:11]} 36. Nf3 {[%clk 00:02:51]}
{[%emt 00:00:42]} Kf8 {[%clk 00:08:01]} {[%emt 00:00:54]} 37. Ne1 {[%clk
00:01:43]} {[%emt 00:01:38]} Ne4 {[%clk 00:07:17]} {[%emt 00:01:14]} 38. Rxf7+
{[%clk 00:02:04]} {[%emt 00:00:09]} Ke8 {[%clk 00:07:29]} {[%emt 00:00:17]} 39.
Rg7 {[%clk 00:01:53]} {[%emt 00:00:41]} Rb5 {[%clk 00:06:20]} {[%emt 00:01:40]}
40. Nd3 {[%clk 00:01:17]} {[%emt 00:01:06]} Nd6 {[%clk 00:01:32]} {[%emt
00:05:18]} 41. Rg8+ {[%clk 00:20:21]} {[%emt 00:11:25]} Kd7 {[%clk 00:31:06]}
{[%emt 00:00:57]} 42. Bxd6 {[%clk 00:19:22]} {[%emt 00:01:28]} Kxd6 {[%clk
00:30:32]} {[%emt 00:01:04]} 43. b4 {[%clk 00:18:56]} {[%emt 00:00:56]} cxd4
{[%clk 00:29:20]} {[%emt 00:01:42]} 44. cxd4 {[%clk 00:19:11]} {[%emt
00:00:15]} Bf6 {[%clk 00:29:17]} {[%emt 00:00:33]} 45. a4 {[%clk 00:19:22]}
{[%emt 00:00:20]} Rxb4 {[%clk 00:29:26]} {[%emt 00:00:21]} 46. Nxb4 {[%clk
00:19:41]} {[%emt 00:00:10]} Bxd4 {[%clk 00:29:50]} {[%emt 00:00:06]} 47. Nd3
{[%clk 00:18:56]} {[%emt 00:01:14]} e5 {[%clk 00:29:51]} {[%emt 00:00:30]} 48.
Rf5 {[%clk 00:18:50]} {[%emt 00:00:36]} Re6 {[%clk 00:29:17]} {[%emt 00:01:04]}
49. Rgxg5 {[%clk 00:18:31]} {[%emt 00:00:48]} Re8 {[%clk 00:28:57]} {[%emt
00:00:50]} 50. Rg6+ {[%clk 00:18:42]} {[%emt 00:00:19]} Kc7 {[%clk 00:29:11]}
{[%emt 00:00:16]} 51. Rf7+ {[%clk 00:18:36]} {[%emt 00:00:36]} Kc8 {[%clk
00:29:31]} {[%emt 00:00:10]} 52. Nb4 {[%clk 00:17:30]} {[%emt 00:01:36]} 1-0

[Event "Allsvenskan 24-25"]
[Site "Linköping, Sweden"]
[Date "????.??.??"]
[Round "10.10"]
[White "Leijon, Noah"]
[Black "Gidmark, Fredrik"]
[Result "0-1"]
[TimeControl "90 min/40 moves + 30 min + 30 sec from move 1"]
[WhiteElo "1805"]
[BlackElo "1914"]

1. e4 {[%clk 01:30:58]} {[%emt 24:09:25]} d5 {[%clk 01:30:51]} 2. exd5 {[%clk
01:31:20]} Nf6 {[%clk 01:31:16]} 3. d4 {[%clk 01:25:45]} Nxd5 {[%clk 01:31:37]}
4. Bc4 {[%clk 01:25:41]} Bf5 {[%clk 01:26:24]} 5. c3 {[%clk 01:18:21]} e6
{[%clk 01:22:28]} 6. Nf3 {[%clk 01:17:25]} Be7 {[%clk 01:19:41]} 7. O-O {[%clk
01:11:00]} {[%emt 00:02:44]} O-O {[%clk 01:19:46]} {[%emt 00:00:25]} 8. Ne5
{[%clk 01:02:30]} {[%emt 00:09:00]} Nd7 {[%clk 01:14:33]} {[%emt 00:05:43]} 9.
Bxd5 {[%clk 00:50:31]} {[%emt 00:12:29]} exd5 {[%clk 01:13:53]} {[%emt
00:01:10]} 10. Nf3 {[%clk 00:49:53]} {[%emt 00:01:08]} b5 {[%clk 00:57:01]}
{[%emt 00:17:22]} 11. Bf4 {[%clk 00:46:02]} {[%emt 00:04:20]} a5 {[%clk
00:51:14]} {[%emt 00:06:17]} 12. Re1 {[%clk 00:39:00]} {[%emt 00:07:33]} Bf6
{[%clk 00:37:10]} {[%emt 00:14:35]} 13. a3 {[%clk 00:35:27]} {[%emt 00:04:03]}
c6 {[%clk 00:34:47]} {[%emt 00:02:52]} 14. Nbd2 {[%clk 00:30:29]} {[%emt
00:05:28]} Qb6 {[%clk 00:34:16]} {[%emt 00:01:01]} 15. b4 {[%clk 00:24:54]}
{[%emt 00:06:05]} Rfe8 {[%clk 00:25:36]} {[%emt 00:09:09]} 16. Nb3 {[%clk
00:21:10]} {[%emt 00:04:14]} a4 {[%clk 00:23:46]} {[%emt 00:02:20]} 17. Nc1
{[%clk 00:21:21]} {[%emt 00:00:18]} Re4 {[%clk 00:18:13]} {[%emt 00:06:03]} 18.
Nd3 {[%clk 00:18:13]} {[%emt 00:03:38]} Rae8 {[%clk 00:18:20]} {[%emt
00:00:23]} 19. Nde5 {[%clk 00:16:43]} {[%emt 00:02:00]} Rxf4 {[%clk 00:16:28]}
{[%emt 00:02:22]} 20. g3 {[%clk 00:09:39]} {[%emt 00:07:34]} Re4 {[%clk
00:15:09]} {[%emt 00:01:48]} 21. Rxe4 {[%clk 00:09:02]} {[%emt 00:01:06]} dxe4
{[%clk 00:14:53]} {[%emt 00:00:47]} 22. Nxd7 {[%clk 00:07:40]} {[%emt
00:01:52]} Bxd7 {[%clk 00:15:21]} {[%emt 00:00:02]} 23. Nd2 {[%clk 00:07:37]}
{[%emt 00:00:33]} Qd8 {[%clk 00:14:27]} {[%emt 00:01:24]} 24. Qc2 {[%clk
00:07:05]} {[%emt 00:01:02]} Bf5 {[%clk 00:13:44]} {[%emt 00:01:12]} 25. Nf1
{[%clk 00:06:37]} {[%emt 00:00:58]} Qd7 {[%clk 00:11:28]} {[%emt 00:02:46]} 26.
Ne3 {[%clk 00:06:39]} {[%emt 00:00:28]} Bg6 {[%clk 00:10:34]} {[%emt 00:01:24]}
27. g4 {[%clk 00:04:52]} {[%emt 00:02:18]} Bg5 {[%clk 00:10:21]} {[%emt
00:00:43]} 28. h3 {[%clk 00:04:34]} {[%emt 00:00:48]} Qd6 {[%clk 00:07:51]}
{[%emt 00:02:59]} 29. Ng2 {[%clk 00:03:59]} {[%emt 00:01:04]} e3 {[%clk
00:05:18]} {[%emt 00:03:03]} 30. Qb2 {[%clk 00:04:11]} {[%emt 00:00:18]} e2
{[%clk 00:03:43]} {[%emt 00:02:05]} 31. Re1 {[%clk 00:02:17]} {[%emt 00:02:23]}
Bd3 {[%clk 00:03:58]} {[%emt 00:00:14]} 32. h4 {[%clk 00:01:47]} {[%emt
00:01:00]} Bf4 {[%clk 00:03:23]} {[%emt 00:01:05]} 33. Qa2 {[%clk 00:01:19]}
{[%emt 00:00:59]} Re6 {[%clk 00:02:59]} {[%emt 00:00:54]} 34. d5 {[%clk
00:01:04]} {[%emt 00:00:45]} Bh2+ {[%clk 00:02:39]} {[%emt 00:00:50]} 35. Kh1
{[%clk 00:01:27]} {[%emt 00:00:06]} cxd5 {[%clk 00:02:49]} {[%emt 00:00:21]} 36.
f4 {[%clk 00:01:24]} {[%emt 00:00:33]} Bxf4 {[%clk 00:02:49]} {[%emt 00:00:30]}
37. Nxf4 {[%clk 00:01:49]} {[%emt 00:00:06]} Qxf4 {[%clk 00:03:08]} {[%emt
00:00:11]} 38. Qxd5 {[%clk 00:02:11]} {[%emt 00:00:07]} Be4+ {[%clk 00:03:21]}
{[%emt 00:00:18]} 0-1

[Event "Allsvenskan 24-25"]
[Site "Linköping, Sweden"]
[Date "????.??.??"]
[Round "10.12"]
[White "Skytt, Klas"]
[Black "Andersson, Daniel"]
[Result "0-1"]
[TimeControl "90 min/40 moves + 30 min + 30 sec from move 1"]
[WhiteElo "1774"]
[BlackElo "1910"]

1. d4 {[%clk 01:30:52]} Nf6 {[%clk 01:30:41]} 2. c4 {[%clk 01:31:06]} g6 {[%clk
01:31:03]} 3. Nc3 {[%clk 01:31:18]} Bg7 {[%clk 01:31:26]} 4. e4 {[%clk
01:31:14]} d6 {[%clk 01:31:50]} 5. Nf3 {[%clk 01:29:47]} O-O {[%clk 01:31:57]}
6. h3 {[%clk 01:29:09]} Nbd7 {[%clk 01:25:36]} 7. Be3 {[%clk 01:28:16]} c5
{[%clk 01:23:43]} 8. d5 {[%clk 01:26:39]} Qa5 {[%clk 01:18:15]} 9. Bd2 {[%clk
01:23:54]} Qb6 {[%clk 01:17:33]} 10. Qc1 {[%clk 01:23:17]} Re8 {[%clk
01:12:06]} {[%emt 00:02:25]} 11. Bd3 {[%clk 01:21:24]} {[%emt 00:02:23]} e5
{[%clk 01:04:41]} {[%emt 00:07:55]} 12. O-O {[%clk 01:16:34]} {[%emt 00:05:21]}
Nf8 {[%clk 01:00:59]} {[%emt 00:04:13]} 13. Rb1 {[%clk 01:15:32]} {[%emt
00:01:30]} a5 {[%clk 00:59:29]} {[%emt 00:02:02]} 14. Re1 {[%clk 01:15:05]}
{[%emt 00:00:55]} Kh8 {[%clk 00:55:31]} {[%emt 00:04:28]} 15. Ng5 {[%clk
01:08:12]} {[%emt 00:07:22]} Re7 {[%clk 00:53:44]} {[%emt 00:02:17]} 16. f4
{[%clk 01:07:54]} {[%emt 00:00:48]} exf4 {[%clk 00:53:02]} {[%emt 00:01:13]} 17.
Bxf4 {[%clk 01:07:53]} {[%emt 00:00:31]} N6d7 {[%clk 00:51:26]} {[%emt
00:02:06]} 18. Nf3 {[%clk 01:05:41]} {[%emt 00:02:42]} f6 {[%clk 00:47:35]}
{[%emt 00:04:21]} 19. Nb5 {[%clk 00:55:16]} {[%emt 00:10:55]} Ne5 {[%clk
00:47:22]} {[%emt 00:00:43]} 20. Nxe5 {[%clk 00:53:32]} {[%emt 00:02:13]} fxe5
{[%clk 00:40:12]} {[%emt 00:07:40]} 21. Bg5 {[%clk 00:47:59]} {[%emt 00:06:04]}
Rf7 {[%clk 00:40:32]} {[%emt 00:00:10]} 22. Rf1 {[%clk 00:48:15]} {[%emt
00:00:13]} Rxf1+ {[%clk 00:40:54]} {[%emt 00:00:09]} 23. Qxf1 {[%clk 00:48:28]}
{[%emt 00:00:17]} Bd7 {[%clk 00:41:05]} {[%emt 00:00:19]} 24. Nc3 {[%clk
00:47:29]} {[%emt 00:01:29]} h6 {[%clk 00:38:13]} {[%emt 00:03:21]} 25. Bf6
{[%clk 00:46:01]} {[%emt 00:01:59]} Nh7 {[%clk 00:38:27]} {[%emt 00:00:17]} 26.
Bxg7+ {[%clk 00:46:15]} {[%emt 00:00:15]} Kxg7 {[%clk 00:38:50]} {[%emt
00:00:07]} 27. Qe2 {[%clk 00:45:35]} {[%emt 00:01:09]} Rf8 {[%clk 00:39:01]}
{[%emt 00:00:21]} 28. Rf1 {[%clk 00:45:39]} {[%emt 00:00:25]} Rxf1+ {[%clk
00:37:39]} {[%emt 00:01:52]} 29. Kxf1 {[%clk 00:44:26]} {[%emt 00:01:42]} Qd8
{[%clk 00:37:51]} {[%emt 00:00:20]} 30. b3 {[%clk 00:43:22]} {[%emt 00:01:34]}
Qg5 {[%clk 00:37:16]} {[%emt 00:01:04]} 31. Qe1 {[%clk 00:39:16]} {[%emt
00:04:37]} Nf6 {[%clk 00:35:26]} {[%emt 00:02:19]} 32. Bb1 {[%clk 00:34:43]}
{[%emt 00:05:03]} Nh5 {[%clk 00:34:49]} {[%emt 00:01:07]} 33. Ne2 {[%clk
00:34:21]} {[%emt 00:00:52]} Nf4 {[%clk 00:30:49]} {[%emt 00:04:30]} 34. Nxf4
{[%clk 00:33:10]} {[%emt 00:01:41]} Qxf4+ {[%clk 00:31:11]} {[%emt 00:00:08]}
35. Qf2 {[%clk 00:33:15]} {[%emt 00:00:24]} Qc1+ {[%clk 00:31:21]} {[%emt
00:00:20]} 36. Qe1 {[%clk 00:33:38]} {[%emt 00:00:08]} Qxe1+ {[%clk 00:18:35]}
{[%emt 00:13:16]} 37. Kxe1 {[%clk 00:34:00]} {[%emt 00:00:07]} Kf6 {[%clk
00:18:57]} {[%emt 00:00:09]} 38. Kf2 {[%clk 00:32:46]} {[%emt 00:01:44]} Kg5
{[%clk 00:18:43]} {[%emt 00:00:44]} 39. Kg3 {[%clk 00:32:02]} {[%emt 00:01:14]}
h5 {[%clk 00:15:53]} {[%emt 00:03:20]} 40. Bd3 {[%clk 00:31:51]} {[%emt
00:00:41]} h4+ {[%clk 00:16:03]} {[%emt 00:00:20]} 41. Kf3 {[%clk 00:32:01]}
{[%emt 00:00:19]} a4 {[%clk 00:10:28]} {[%emt 00:06:05]} 42. Ke3 {[%clk
00:31:38]} {[%emt 00:00:53]} Kh6 {[%clk 00:04:07]} {[%emt 00:06:50]} 43. Be2
{[%clk 00:31:43]} {[%emt 00:00:26]} Kg5 {[%clk 00:03:22]} {[%emt 00:01:15]} 44.
Kf3 {[%clk 00:30:44]} {[%emt 00:01:30]} a3 {[%clk 00:28:18]} {[%emt 00:05:34]}
45. Ke3 {[%clk 01:00:42]} {[%emt 00:00:31]} Be8 {[%clk 00:18:57]} {[%emt
00:09:52]} 46. Kf3 {[%clk 00:59:49]} {[%emt 00:01:24]} Bd7 {[%clk 00:12:54]}
{[%emt 00:06:33]} 47. Ke3 {[%clk 00:58:58]} {[%emt 00:01:20]} Kf6 {[%clk
00:13:14]} {[%emt 00:00:11]} 48. Kd2 {[%clk 00:58:48]} {[%emt 00:00:41]} Ke7
{[%clk 00:12:44]} {[%emt 00:01:00]} 49. Kc3 {[%clk 00:56:46]} {[%emt 00:02:32]}
Kf6 {[%clk 00:11:28]} {[%emt 00:01:47]} 50. b4 {[%clk 00:45:11]} {[%emt
00:12:06]} cxb4+ {[%clk 00:11:50]} {[%emt 00:00:08]} 51. Kxb4 {[%clk 00:45:34]}
{[%emt 00:00:07]} b6 {[%clk 00:10:23]} {[%emt 00:01:57]} 52. Bg4 {[%clk
00:44:17]} {[%emt 00:01:47]} Be8 {[%clk 00:03:33]} {[%emt 00:07:20]} 53. Kxa3
{[%clk 00:43:51]} {[%emt 00:00:56]} Kg5 {[%clk 00:03:54]} {[%emt 00:00:10]} 54.
Kb4 {[%clk 00:43:47]} {[%emt 00:00:33]} Kf4 {[%clk 00:04:16]} {[%emt 00:00:08]}
55. Bf3 {[%clk 00:42:57]} {[%emt 00:01:20]} Bd7 {[%clk 00:04:45]} {[%emt
00:00:02]} 56. a4 {[%clk 00:42:25]} {[%emt 00:01:02]} Bxh3 {[%clk 00:04:59]}
{[%emt 00:00:15]} 57. gxh3 {[%clk 00:42:18]} {[%emt 00:00:34]} Kxf3 {[%clk
00:05:26]} {[%emt 00:00:07]} 58. c5 {[%clk 00:41:59]} {[%emt 00:00:49]} bxc5+
{[%clk 00:05:29]} {[%emt 00:00:26]} 59. Kc4 {[%clk 00:41:42]} {[%emt 00:00:47]}
g5 {[%clk 00:04:34]} {[%emt 00:01:25]} 60. a5 {[%clk 00:40:33]} {[%emt
00:01:40]} g4 {[%clk 00:04:57]} {[%emt 00:00:06]} 61. a6 {[%clk 00:40:29]}
{[%emt 00:00:34]} gxh3 {[%clk 00:04:24]} {[%emt 00:01:03]} 62. a7 {[%clk
00:40:50]} {[%emt 00:00:09]} h2 {[%clk 00:04:38]} {[%emt 00:00:16]} 63. a8=Q
{[%clk 00:41:06]} {[%emt 00:00:14]} h1=Q {[%clk 00:04:57]} {[%emt 00:00:11]} 64.
Qa3+ {[%clk 00:38:52]} {[%emt 00:02:44]} Kf4 {[%clk 00:05:01]} {[%emt
00:00:26]} 65. Kb5 {[%clk 00:37:00]} {[%emt 00:02:22]} Qxe4 {[%clk 00:04:58]}
{[%emt 00:00:33]} 66. Kc6 {[%clk 00:37:18]} {[%emt 00:00:12]} Qe3 {[%clk
00:03:42]} {[%emt 00:01:46]} 67. Qxe3+ {[%clk 00:34:50]} {[%emt 00:02:58]} Kxe3
{[%clk 00:03:51]} {[%emt 00:00:22]} 68. Kxd6 {[%clk 00:35:16]} {[%emt
00:00:04]} h3 {[%clk 00:04:07]} {[%emt 00:00:14]} 69. Kxc5 {[%clk 00:34:45]}
{[%emt 00:01:01]} h2 {[%clk 00:04:17]} {[%emt 00:00:20]} 70. d6 {[%clk
00:35:01]} {[%emt 00:00:14]} h1=Q {[%clk 00:04:25]} {[%emt 00:00:21]} 71. d7
{[%clk 00:35:27]} {[%emt 00:00:05]} Qa8 {[%clk 00:04:21]} {[%emt 00:00:34]} 72.
Kd4+ {[%emt 00:00:34]} 0-1

[Event "Allsvenskan 24-25"]
[Site "Linköping, Sweden"]
[Date "????.??.??"]
[Round "10.13"]
[White "Andersson, Andreas 1972"]
[Black "Larsson, Emma 2008"]
[Result "1/2-1/2"]
[TimeControl "90 min/40 moves + 30 min + 30 sec from move 1"]
[WhiteElo "1889"]
[BlackElo "1772"]

1. d4 {[%clk 01:30:57]} {[%emt 24:09:16]} Nf6 {[%clk 01:30:53]} 2. c4 {[%clk
01:31:09]} c5 {[%clk 01:31:18]} 3. e3 {[%clk 01:30:37]} g6 {[%clk 01:31:15]} 4.
Nf3 {[%clk 01:30:01]} cxd4 {[%clk 01:30:27]} 5. exd4 {[%clk 01:29:20]} Bg7
{[%clk 01:30:24]} 6. Be2 {[%clk 01:28:05]} O-O {[%clk 01:30:29]} 7. O-O {[%clk
01:28:30]} d6 {[%clk 01:28:27]} 8. Nc3 {[%clk 01:27:23]} b6 {[%clk 01:26:04]} 9.
h3 {[%clk 01:24:53]} Bb7 {[%clk 01:24:57]} 10. Be3 {[%clk 01:24:20]} Nbd7
{[%clk 01:23:00]} 11. Qd2 {[%clk 01:22:38]} Re8 {[%clk 01:18:50]} 12. Rac1
{[%clk 01:19:22]} {[%emt 00:00:28]} Rc8 {[%clk 01:14:17]} {[%emt 00:05:03]} 13.
Rfd1 {[%clk 01:15:48]} {[%emt 00:04:05]} e5 {[%clk 01:03:12]} {[%emt 00:11:36]}
14. Nb5 {[%clk 01:04:27]} {[%emt 00:11:51]} Ne4 {[%clk 01:01:28]} {[%emt
00:02:12]} 15. Qb4 {[%clk 00:56:18]} {[%emt 00:08:40]} a6 {[%clk 00:58:12]}
{[%emt 00:03:46]} 16. Na3 {[%clk 00:51:18]} {[%emt 00:05:29]} Qc7 {[%clk
00:54:33]} {[%emt 00:04:08]} 17. d5 {[%clk 00:47:08]} {[%emt 00:04:41]} f5
{[%clk 00:51:38]} {[%emt 00:03:25]} 18. Rc2 {[%clk 00:40:39]} {[%emt 00:06:59]}
f4 {[%clk 00:44:31]} {[%emt 00:07:37]} 19. Bc1 {[%clk 00:40:54]} {[%emt
00:00:15]} Ndc5 {[%clk 00:42:23]} {[%emt 00:02:38]} 20. Qe1 {[%clk 00:40:16]}
{[%emt 00:01:08]} Qe7 {[%clk 00:36:37]} {[%emt 00:06:16]} 21. b4 {[%clk
00:39:36]} {[%emt 00:01:10]} Nd7 {[%clk 00:36:45]} {[%emt 00:00:22]} 22. Nh2
{[%clk 00:36:05]} {[%emt 00:04:01]} Rf8 {[%clk 00:32:45]} {[%emt 00:04:31]} 23.
Bd3 {[%clk 00:33:37]} {[%emt 00:02:57]} Ng5 {[%clk 00:26:51]} {[%emt 00:06:24]}
24. f3 {[%clk 00:33:04]} {[%emt 00:01:03]} Rce8 {[%clk 00:26:25]} {[%emt
00:00:55]} 25. Re2 {[%clk 00:32:22]} {[%emt 00:01:12]} Qd8 {[%clk 00:24:03]}
{[%emt 00:02:51]} 26. Ng4 {[%clk 00:30:35]} {[%emt 00:02:20]} Nf6 {[%clk
00:22:48]} {[%emt 00:01:44]} 27. Nf2 {[%clk 00:30:21]} {[%emt 00:00:43]} Bc8
{[%clk 00:21:55]} {[%emt 00:01:23]} 28. Qd2 {[%clk 00:26:23]} {[%emt 00:04:29]}
Nh5 {[%clk 00:21:06]} {[%emt 00:01:19]} 29. Qc2 {[%clk 00:21:14]} {[%emt
00:05:39]} Ng3 {[%clk 00:20:11]} {[%emt 00:01:25]} 30. Ree1 {[%clk 00:21:30]}
{[%emt 00:00:14]} Re7 {[%clk 00:08:33]} {[%emt 00:12:08]} 31. Kh2 {[%clk
00:19:34]} {[%emt 00:02:25]} Qd7 {[%clk 00:06:49]} {[%emt 00:02:13]} 32. c5
{[%clk 00:18:36]} {[%emt 00:01:30]} bxc5 {[%clk 00:04:11]} {[%emt 00:03:08]} 33.
bxc5 {[%clk 00:19:01]} {[%emt 00:00:05]} dxc5 {[%clk 00:03:23]} {[%emt
00:01:18]} 34. d6 {[%clk 00:18:42]} {[%emt 00:00:49]} Ree8 {[%clk 00:03:30]}
{[%emt 00:00:23]} 35. Qxc5 {[%clk 00:17:29]} {[%emt 00:01:43]} Bb7 {[%clk
00:03:29]} {[%emt 00:00:31]} 36. Bc4+ {[%clk 00:12:21]} {[%emt 00:05:38]} Kh8
{[%clk 00:03:33]} {[%emt 00:00:26]} 37. Bd5 {[%clk 00:12:32]} {[%emt 00:00:19]}
Rc8 {[%clk 00:02:50]} {[%emt 00:01:12]} 38. Qb4 {[%clk 00:09:55]} {[%emt
00:03:07]} Rxc1 {[%clk 00:01:47]} {[%emt 00:01:33]} 39. Qxb7 {[%clk 00:07:22]}
{[%emt 00:03:03]} Qxb7 {[%clk 00:02:01]} {[%emt 00:00:16]} 40. Bxb7 {[%clk
00:07:46]} {[%emt 00:00:05]} Rc3 {[%clk 00:01:18]} {[%emt 00:01:13]} 41. Nb1
{[%clk 00:06:33]} {[%emt 00:01:43]} Rc2 {[%clk 00:24:49]} {[%emt 00:06:58]} 42.
Rd2 {[%clk 00:36:13]} {[%emt 00:00:51]} Rxd2 {[%clk 00:21:30]} {[%emt
00:03:49]} 43. Nxd2 {[%clk 00:36:33]} {[%emt 00:00:10]} Rd8 {[%clk 00:20:28]}
{[%emt 00:01:31]} 44. Nc4 {[%clk 00:36:41]} {[%emt 00:00:21]} Nf5 {[%clk
00:17:06]} {[%emt 00:03:53]} 45. Nxe5 {[%clk 00:29:19]} {[%emt 00:07:52]} Nxd6
{[%clk 00:12:43]} {[%emt 00:04:53]} 46. Bc6 {[%clk 00:20:23]} {[%emt 00:09:26]}
Ngf7 {[%clk 00:07:14]} {[%emt 00:05:58]} 47. Nxf7+ {[%clk 00:16:46]} {[%emt
00:04:07]} Nxf7 {[%clk 00:07:43]} {[%emt 00:00:02]} 48. Ne4 {[%clk 00:12:37]}
{[%emt 00:04:38]} Bd4 {[%clk 00:06:06]} {[%emt 00:02:07]} 1/2-1/2

[Event "Allsvenskan 24-25"]
[Site "Linköping, Sweden"]
[Date "????.??.??"]
[Round "10.14"]
[White "Jakobsson, Leif"]
[Black "Karlsson, Peter 1965"]
[Result "0-1"]
[TimeControl "90 min/40 moves + 30 min + 30 sec from move 1"]
[WhiteElo "1728"]
[BlackElo "1740"]

1. e4 {[%clk 01:30:53]} d5 {[%clk 01:30:51]} 2. exd5 {[%clk 01:31:15]} Nf6
{[%clk 01:31:16]} 3. d4 {[%clk 01:27:23]} Nxd5 {[%clk 01:31:37]} 4. c4 {[%clk
01:26:28]} Nb6 {[%clk 01:31:53]} 5. Nf3 {[%clk 01:20:30]} g6 {[%clk 01:31:54]}
6. b3 {[%clk 01:13:47]} Bg7 {[%clk 01:32:11]} 7. Bb2 {[%clk 01:13:15]} c5
{[%clk 01:26:48]} 8. Na3 {[%clk 01:06:32]} {[%emt 00:00:57]} Nc6 {[%clk
01:25:26]} {[%emt 00:01:53]} 9. Nc2 {[%clk 01:01:00]} {[%emt 00:06:02]} O-O
{[%clk 01:18:08]} {[%emt 00:07:49]} 10. Qd2 {[%clk 00:57:38]} {[%emt 00:03:49]}
Bf5 {[%clk 01:14:30]} {[%emt 00:04:09]} 11. Bd3 {[%clk 00:50:08]} {[%emt
00:07:59]} Bxd3 {[%clk 01:13:11]} {[%emt 00:01:50]} 12. Qxd3 {[%clk 00:50:20]}
{[%emt 00:00:18]} cxd4 {[%clk 01:13:00]} {[%emt 00:00:42]} 13. c5 {[%clk
00:43:41]} {[%emt 00:07:08]} Nd5 {[%clk 00:54:05]} {[%emt 00:19:24]} 14. Qb5
{[%clk 00:30:12]} {[%emt 00:14:00]} e5 {[%clk 00:48:40]} {[%emt 00:05:55]} 15.
Qxb7 {[%clk 00:26:27]} {[%emt 00:04:15]} Qa5+ {[%clk 00:45:47]} {[%emt
00:03:23]} 16. b4 {[%clk 00:22:31]} {[%emt 00:04:26]} Ncxb4 {[%clk 00:44:34]}
{[%emt 00:01:43]} 17. Nxb4 {[%clk 00:21:56]} {[%emt 00:01:05]} Nxb4 {[%clk
00:41:54]} {[%emt 00:03:10]} 18. O-O {[%clk 00:21:11]} {[%emt 00:01:15]} Nd3
{[%clk 00:37:28]} {[%emt 00:04:55]} 19. Qb3 {[%clk 00:16:50]} {[%emt 00:04:50]}
Nxb2 {[%clk 00:36:24]} {[%emt 00:01:35]} 20. Qxb2 {[%clk 00:17:10]} {[%emt
00:00:10]} Qxc5 {[%clk 00:36:26]} {[%emt 00:00:28]} 21. Rfc1 {[%clk 00:16:58]}
{[%emt 00:00:41]} Qd6 {[%clk 00:35:56]} {[%emt 00:01:00]} 22. Ng5 {[%clk
00:15:03]} {[%emt 00:02:25]} Qd5 {[%clk 00:32:42]} {[%emt 00:03:45]} 23. Rc7
{[%clk 00:13:56]} {[%emt 00:01:36]} h6 {[%clk 00:32:23]} {[%emt 00:00:49]} 24.
Nf3 {[%clk 00:13:28]} {[%emt 00:00:57]} e4 {[%clk 00:32:35]} {[%emt 00:00:20]}
25. Nd2 {[%clk 00:04:00]} {[%emt 00:09:57]} d3 {[%clk 00:32:20]} {[%emt
00:00:45]} 26. Qc1 {[%clk 00:03:55]} {[%emt 00:00:34]} Bxa1 {[%clk 00:28:51]}
{[%emt 00:03:59]} 27. Qxa1 {[%clk 00:04:17]} {[%emt 00:00:08]} Rfc8 {[%clk
00:26:57]} {[%emt 00:02:25]} 28. Re7 {[%clk 00:03:28]} {[%emt 00:01:18]} Qg5
{[%clk 00:56:14]} {[%emt 00:04:43]} 0-1